Cogmind - Beta 15 @@@ ROGUE MODE // 2025.08.12 @ 12:48:45 Player: Zen9890 Result: Smashed by cave-in Performance ------------- Evolutions (0) 0 Regions Visited (1) 200 Robots Destroyed (13) 65 Value Destroyed (227) 227 Prototype IDs (0) 0 Alien Tech Used (0) 0 Bonus (0) 0 TOTAL SCORE: 492 Bonus ------- None Cogmind --------- Core Integrity 0/250 Matter 245/300 Energy 100/100 System Corruption 10% Temperature Cool (0) Movement Core (50) Location -10/Materials Parts ------- > --- POWER (1) -------- (None) > --- PROPULSION (2) --- (None) > --- UTILITY (2) ------ (None) > --- WEAPON (2) ------- (None) > --- INVENTORY (5) ---- Wheel Wheel Wheel EM Pulse Gun Peak State ------------ > --- POWER ------------ Light Ion Engine > --- PROPULSION ------- Wheel Wheel > --- UTILITY ---------- Small Storage Unit Improved Terrain Scanner > --- WEAPON ----------- Medium Laser Medium Laser > --- INVENTORY -------- EM Pulse Gun Mining Laser [Rating: 9] Favorites ----------- Power Light Ion Engine Engine Light Ion Engine Propulsion Wheel Wheel Wheel Utility Small Storage Unit Device Improved Terrain Scanner Storage Small Storage Unit Processor Terrain Scan Processor Weapon Medium Laser Energy Gun Medium Laser Launcher Grenade Launcher Special Weapon Mining Laser Build | -11 -10 ------- Run | Yrd Mat Slots Evolved . | . . Power . | . . Propulsion . | . . Utility . | . . Weapon . | . . Parts Attached 14 | 7 7 Power 3 | 1 2 Engine 3 | 1 2 Core . | . . Reactor . | . . Propulsion 2 | 2 . Treads . | . . Leg . | . . Wheel 2 | 2 . Hover . | . . Flight . | . . Utility 4 | 2 2 Device 2 | 1 1 Storage 1 | 1 . Processor 1 | . 1 Hackware . | . . Protection . | . . Artifact . | . . Weapon 5 | 2 3 Energy Gun 2 | 2 . Energy Cannon . | . . Ballistic Gun . | . . Ballistic Cannon . | . . Launcher 1 | . 1 Special Weapon 2 | . 2 Impact Weapon . | . . Slashing Weapon . | . . Piercing Weapon . | . . Special Melee Weapon . | . . Unidentified Prototypes . | . . Parts Lost 13 | . 13 Power 3 | . 3 Propulsion 2 | . 2 Utility 3 | . 3 Weapon 5 | . 5 Highest Loss Streak 9 | . 9 To Critical Strikes . | . . Average Backups 4 | 2 4 Power . | . . Propulsion 2 | . 2 Utility . | . . Weapon 2 | 1 2 Tool/Special . | . . Unused Backups 4 | . 4 Power . | . . Propulsion 3 | . 3 Utility . | . . Weapon 1 | . 1 Tool/Special . | . . Average Slot Usage (%) 50 | . 50 Engine 6 | . 6 Wheel 13 | . 13 Device 5 | . 5 Storage 9 | . 9 Processor 2 | . 2 Energy Gun 11 | . 11 Launcher 1 | . 1 Special Weapon 1 | . 1 Peak Build Rating 9 | 9 9 Average Rating 4 | 6 4 On Entrance 4 | . 9 Naked Turns 142 | . 142 Heaviest Build 13 | 13 13 Greatest Support 20 | 20 20 Greatest Overweight (x) 2 | . 2 Average Overweight (x) . | . . Largest Inventory Capacity 8 | 8 8 Average Capacity 7 | 7 6 Most Carried 8 | 5 8 Average Carried 4 | 2 4 Final Capacity 8 | 8 5 Final Carried 5 | 5 4 Class Distribution -------------------- 100% | Mutant Dominant Class ---------------- Mutant | -10/Materials Resources | -11 -10 ----------- Run | Yrd Mat Matter Collected 354 | 244 110 Remotely . | . . Salvage Created 331 | 88 243 Parts 33 | 12 21 Haulers Intercepted . | . . Recyclers Shooed . | . . Parts Field Recycled . | . . Retrieved Matter . | . . Parts Self-Destructed . | . . Prevented . | . . Kills | -11 -10 ------- Run | Yrd Mat Combat Hostiles Destroyed 4 | . 4 Cannons 1 | . 1 AOE 3 | . 3 Classes Destroyed 4 | 1 3 Builder 2 | . 2 Tunneler 6 | 4 2 Watcher 1 | . 1 Grunt 4 | . 4 Best Kill Streak 4 | 3 4 Combat Bots Only 4 | . 4 Max Kills in Single Turn 2 | 1 2 Gunslinging . | . . Exploded 2 | . 2 Melee . | . . Uniques/NPCs Destroyed . | . . Combat | -11 -10 -------- Run | Yrd Mat Hostile Shots Fired 42 | . 42 Missed 12 | . 12 Hits 30 | . 30 Projectile 30 | . 30 Damage Taken 1045 | . 1045 Core 282 | . 282 Absorbed by Shields . | . . Core Remaining (%) 100 | 100 . Volleys Fired 39 | 8 31 Largest 2 | 2 2 Hottest 150 | 100 150 Shots Fired 64 | 14 50 Gun 51 | 14 37 Cannon . | . . Launcher 7 | . 7 Special 6 | . 6 Kinetic . | . . Thermal 57 | 14 43 Explosive 7 | . 7 Electromagnetic . | . . Robot Hit Streak 12 | 8 12 Robot Miss Streak 5 | 2 5 Penetration Max . | . . Secondary Targets . | . . Shots Hit Robots 27 | 10 17 Core Hits 21 | 4 17 Critical Kills . | . . Critical Parts Destroyed . | . . Critical Strikes 1 | . 1 Burn 1 | . 1 Melee Attacks . | . . Impact . | . . Slashing . | . . Piercing . | . . Sneak Attacks . | . . Combat Hostiles . | . . Follow-up Attacks . | . . Damage Inflicted 643 | 122 521 Guns 348 | 122 226 Cannons . | . . Explosions 271 | . 271 Melee . | . . Ramming . | . . Kinetic . | . . Thermal 372 | 122 250 Explosive 177 | . 177 Electromagnetic 94 | . 94 Impact . | . . Slashing . | . . Piercing . | . . Highest Corruption 10 | . 10 Average Corruption 6 | . 6 Corruption Purged . | . . Corruption Blocked . | . . Effects 9 | . 9 Message Errors 2 | . 2 Matter Fused 2 | . 2 Heat Flow Errors 1 | . 1 Energy Discharges 1 | . 1 Parts Fused 1 | . 1 Misfires 1 | . 1 Weapon Failures 1 | . 1 Overload Shots . | . . Overflow Damage 8 | . 8 Projectiles . | . . Explosions 8 | . 8 Melee . | . . Knockbacks . | . . Impact . | . . Kinetic . | . . Secondary . | . . Self-Inflicted Damage 193 | . 193 Shots 7 | . 7 Rammed . | . . Targets Rammed . | . . Kicked . | . . Crushed . | . . Highest Temperature 274 | 195 274 Average Temperature 83 | 91 81 Received Heat Transfer 219 | . 219 Effects 1 | . 1 Energy Bleed 1 | . 1 Siege Activations . | . . Martial Activations . | . . Shielding Activations . | . . Robots Disrupted . | . . Combat Hostiles . | . . Robots Corrupted . | . . Combat Hostiles . | . . Parts Fried . | . . Impact Corruptions . | . . Robots Melted . | . . Combat Hostiles . | . . Parts Melted 2 | 1 1 Heat Transferred 1160 | 370 790 Parts Sabotaged . | . . Parts Stolen . | . . Parts Stripped . | . . Power Chain Reactions . | . . Alert | -11 -10 ------- Run | Yrd Mat Maximum Alert Level . | . . Low Security (%) 100 | 100 100 Level 1 . | . . Level 2 . | . . Level 3 . | . . Level 4 . | . . Level 5 . | . . High Security . | . . Max Security . | . . Peak Influence 92 | 10 92 Initial 3 | . 3 Average 15 | 2 19 Influence Increases 223 | 20 203 Destroy 0b10 Robot/C 80 | . 80 Destroy 0b10 Robot/NC 45 | 20 25 Destroy Leader 22 | . 22 Disable Machine 15 | . 15 Destroy Structure 31 | . 31 Lose Combat Pursuer 30 | . 30 Influence Decreases 223 | 15 208 Entered New Map 2 | . 2 Time Decay 129 | 15 114 Lost Part 92 | . 92 Squads Dispatched 1 | . 1 Investigation . | . . Extermination . | . . Reinforcement 1 | . 1 Assault . | . . Garrison . | . . Intercept . | . . Searches Triggered . | . . Construction Impeded . | . . Haulers Reinforced . | . . Active Scanning Responses . | . . Cargo Convoy Interrupts . | . . Stealth | -11 -10 --------- Run | Yrd Mat Distress Signals 1 | . 1 Communications Jammed . | . . Distress Signals . | . . Times Spotted 7 | . 7 Peak Tracking Total 4 | . 4 Tactical Retreats 1 | . 1 Traps | -11 -10 ------- Run | Yrd Mat Traps Triggered . | . . Indirectly . | . . Trap Hack Attempts . | . . Triggered . | . . Disarmed . | . . Reprogrammed . | . . Reused . | . . Traps Extracted . | . . Installed . | . . Triggered . | . . Machines | -11 -10 ---------- Run | Yrd Mat Machines Disabled 1 | . 1 Max in Single Turn 1 | . 1 Machines Repaired . | . . Machines Dismantled . | . . Machines Sabotaged . | . . Overloaded Fab Kills . | . . Hacking | -11 -10 --------- Run | Yrd Mat Machines Accessed . | . . Terminals . | . . Fabricators . | . . Repair Stations . | . . Recycling Units . | . . Scanalyzers . | . . Garrison Access . | . . Total Hacks . | . . Successful . | . . Failed . | . . Catastrophic . | . . Database Lockouts . | . . Manual . | . . Terminals . | . . Fabricators . | . . Repair Stations . | . . Recycling Units . | . . Scanalyzers . | . . Garrison Access . | . . Terminal Hacks . | . . Fabricator Hacks . | . . Repair Station Hacks . | . . Recycling Unit Hacks . | . . Scanalyzer . | . . Garrison Access Hacks . | . . Unauthorized Hacks . | . . Terminals . | . . Fabricators . | . . Repair Stations . | . . Recycling Units . | . . Scanalyzers . | . . Garrison Access . | . . Data Cores Recovered . | . . Used . | . . Hacking Detections . | . . Full Trace Events . | . . Feedback Events . | . . Feedback Blocked . | . . Robot Schematics Acquired . | . . Robots Built . | . . Authchips . | . . Time . | . . Total Robot Build Rating . | . . Part Schematics Acquired . | . . Parts Built . | . . Authchips . | . . Time . | . . Total Part Build Rating . | . . Parts Repaired . | . . Time . | . . Parts Recycled . | . . Recycled Matter . | . . Retrieved Matter . | . . Retrieved Components . | . . Parts Scanalyzed . | . . Part Schematics Acquired . | . . Parts Damaged . | . . Bothacking | -11 -10 ------------ Run | Yrd Mat Used RIF Installer . | . . Robots Hacked . | . . Non-combat . | . . Combat . | . . Robot Hacks Applied . | . . Relay Couplers Released . | . . Fabnet Peak Effective % . | . . Robots Rewired . | . . Allies Hacked . | . . Hacks Repelled . | . . Allies | -11 -10 -------- Run | Yrd Mat Total Allies . | . . Largest Group . | . . Highest-Rated Group . | . . Highest-Rated Ally . | . . Total Orders . | . . Ally Attacks . | . . Total Damage . | . . Kills . | . . Allies Corrupted . | . . Allies Melted . | . . Intel | -11 -10 ------- Run | Yrd Mat Active Infowar (turns) 204 | 58 146 Terrain 204 | 58 146 Robot Analysis Total . | . . Derelict Logs Recovered . | . . Drone Launches . | . . Drone Recoveries . | . . Exploration | -11 -10 ------------- Run | Yrd Mat Turns Passed 500 | 97 403 Spaces Moved 205 | 74 131 Core 38 | 20 18 Treads . | . . Legs . | . . Wheels 167 | 54 113 Hover . | . . Flight . | . . Fastest Speed 50 | 50 50 Average Speed 80 | 71 84 Slowest Speed 150 | 80 150 Overloaded Moves . | . . Propulsion Burnouts . | . . Robots Hopped . | . . Potential Cave-ins 12 | . 12 Cave-ins Triggered 3 | . 3 Exploration Rate (%) 9 | 4 15 Regions Visited 1 Branch Regions . Pre-discovered Areas . | . . Known Exits Taken . | . . Unknown Exits Taken 1 | 1 . Scrap Searched . | . . Spaces Dug 31 | . 31 Terrain Destroyed 61 | . 61 Melee . | . . Projectile 5 | . 5 AOE 56 | . 56 Terrain Rammed . | . . Walls Destroyed . | . . Machines Disabled . | . . Actions | -11 -10 --------- Run | Yrd Mat Total 463 | 103 360 Wait 183 | . 183 Move 203 | 73 130 Hop . | . . Pick Up 16 | 10 6 Fast Attach 2 | 2 . Attach 13 | 7 6 Detach 2 | 2 . Swap 4 | 1 3 Drop . | . . Fire 39 | 8 31 Melee . | . . Ram . | . . Kick . | . . Crush . | . . Escape Stasis 1 | . 1 Rewire . | . . Trap . | . . Miscellaneous . | . . Route ------- -11/Scrapyard -10/Materials History --------- Turn | Location | Event 16 | -11/Scrapyard | Discovered new exit (range 14) 98 | -11/Scrapyard | Entered Materials 147 | -10/Materials | Crushed by falling debris 288 | -10/Materials | Core integrity fell below 50% 305 | -10/Materials | Build established: Mutant 312 | -10/Materials | Core integrity fell below 20% 342 | -10/Materials | Lost 9 parts (2p2n5w) 360 | -10/Materials | Crushed by falling debris 361 | -10/Materials | System corruption reached 10% 502 | -10/Materials | Crushed by falling debris 502 | -10/Materials | Smashed by cave-in Last Messages --------------- U-05 Engineer lays Concrete. R-06 Scavenger collects Aluminum Leg. The unstable cave ceiling collapses. Grenade Launcher destroyed. Destroyed Grenade Launcher. The unstable cave ceiling collapses. Crushed by falling debris. Sml. Storage Unit destroyed. System corrupted by crushing effect (+5). Imp. Terrain Scanner destroyed. System corrupted by crushing effect (+1). M7H8APWC5HP9BHMG7O,II The unstable cave ceiling collapses. System corrupted: Heat flow error (+299). System corrupted: Matter fused (-6). K-01 Serf collects debris. |7G#M//E5V>T0F1<#HQI>B2LWPI G&QAGO K-01 Serf collects debris. The unstable cave ceiling collapses. Crushed by falling debris. Map ----- +----------------------------------------------------+ | ?????????????????????????????????????? #?????????? | | ????????????????????????????????????? #?????????? | | ???????????? !???????????????????? ##????????? | | ??????????? ################ #????????? | | ??????????? % ^ T" ????????? | | ??????????? " ????????? | | ??????????? ^ ??????? | | ????????????"" ########### #### #????????? | | ???????????????????????????# #?????????????????? | | ???????????????????????????# #?????????????????? | | ???????????????????????????# #?????????????????? | | ???????????????????????????# #????? ???????????? | | ???????????????????######### ##????????????????? | | ??????????????????? # ##?????????#??????? | | ????????????????? # """ ###???????????????? | | ??????????????????# "Y" %== #?? ????????????? | | ???????????????? ?+ ! *% #?? ????????????? | | ??????????????????# == #???????????????? | | ??????????????????# """ ##?#?????????????? | | ????????????#?????# """ ##???????????????? | | ??????????????????? """ #????????#??????? | | ??????????????????# ### #???????????????? | | ??????????????????######### # ##?????#?????????? | | ????????????????? ??????##k### #??##????#??????? | | ?????????? ?????? #?????# #### #? ?????????????? | | ??????????????#?????????#@ # # #? ?????????????? | | ???????????????#???????## # # ##???#???????????? | | ??????????? ???????????## # ##??????##########? | | ????????????????????##??######!#??# # ## #? | | ???????????? ???????????????## #### ?# """ #? | | ?????????? ???????????????#?# ##+### """ ## | | ????????????????? ??????????# # """ #? | | ???????????????????????#????# " + #? | | ?????????????????????#??#???# # """ #? | | ????????????????????????#??## ###### """ #? | | ?????????????????? ????#?#??## ###???# """ #? | | ??????????????????????????##?# #??#??# #? | | ???????????????#? ?????#???### ##????##""######? | | ?????????????????????????????# #?????# ##?????? | | ???????????????????????#?#???# #?#???####??????? | | ????????????????? ???#????#??#####???????????????? | | ?????????????????????????????????????????????????? | | ?????????????????????????????????????????????????? | | ???????????????????????????????????????????????#?? | | ?????????????????????????????????????????????????? | | ??????????????????????????????????????#?????#????? | | ???????????????????????????????##????#???????????? | | ?????????????????????????????????????????????????? | | ?????????????????????????????????????????#???????? | | ???????????????????????????????????????????#?????? | +----------------------------------------------------+ Best States ------------- Heat Dissipation 25 Energy Generation 10 Energy Capacity 125 Matter Stores 286 Matter Capacity 300 Sight Range 16 Terrain Scan Range 16 Terrain Scan Density 85 Evasion (%) 50 Item Schematics ----------------- None Robot Schematics ------------------ None Fabricated ------------ Nothing Repaired ---------- Nothing Alien Tech Used ----------------- None Achievements -------------- None Challenges ------------ None Game ------ Seed BlastLatentCapacitor Manual? 0 Play Time 00:08:04 Cumulative 6.2 hours Start 2025.08.12 @ 12:43:57 End 2025.08.12 @ 12:48:45 Sessions 1 Manual Loads 0 Difficulty Rogue Special Mode None Game No. 10 Rogue 10 Adventurer 0 Explorer 0 Win Type - Total 0 Types 0/0/0/0/0/0/0/0/0/0 Lore% 6 Gallery% 11 Achievement% 11 Wizard Run 0 Options --------- Layout 1 ASCII 0 Keyboard 0 Movement Mouse Keybinds 0 Fullscreen 1 Font 24/Smallcaps Map View 50x35 Zoom Use 0% Tactical HUD 0 Map Filters NONE Filters NONE Steam 1 RUN: a0cfe676-93ab-4981-9431-80681885ea52